fUST/lending_fUST_20250920
["ID","MTS","AMOUNT","RATE_DAILY","PERIOD"]
[386510177,1758327042741,-151.0,0.00029335,7]
[386510179,1758327042751,-151.0,0.00029335,7]
[386510181,1758327042760,-151.0,0.00029335,7]
[386510183,1758327042770,-151.0,0.00029335,7]
[386510185,1758327042779,-151.0,0.00029335,7]
[386510187,1758327042788,-151.0,0.00029335,7]
[386510189,1758327042798,-151.0,0.00029335,7]
[386510191,1758327042807,-151.0,0.00029335,7]
[386510193,1758327042816,-151.0,0.00029335,7]
[386510195,1758327042826,-151.0,0.00029335,7]
[386510197,1758327042836,-151.0,0.00029335,7]
[386510199,1758327042846,-151.0,0.00029335,7]
[386510201,1758327042857,-151.0,0.00029335,7]
[386510203,1758327042866,-151.0,0.00029335,7]
[386510205,1758327042875,-151.0,0.00029335,7]
[386510207,1758327042885,-151.0,0.00029335,7]
[386510209,1758327042894,-151.0,0.00029335,7]
[386510211,1758327042904,-151.0,0.00029335,7]
[386510213,1758327042914,-151.0,0.00029335,7]
[386510215,1758327042923,-151.0,0.00029335,7]
[386510217,1758327042934,-151.0,0.00029335,7]
[386510219,1758327042944,-170.57174902,0.00029335,7]
[386510221,1758327042954,-290.324211,0.00029335,7]
[386510223,1758327042965,-151.0,0.00029335,7]
[386510225,1758327042975,-151.0,0.00029335,7]
[386510227,1758327042985,-270.986835,0.00029335,7]
[386510229,1758327042994,-270.986835,0.00029335,7]
[386510231,1758327043004,-270.986835,0.00029335,7]
[386510233,1758327043013,-270.986835,0.00029335,7]
[386510235,1758327043023,-270.986835,0.00029335,7]
[386510237,1758327043032,-270.986835,0.00029335,7]
[386510239,1758327043042,-270.986835,0.00029335,7]
[386510242,1758327043052,-270.986835,0.00029335,7]
[386510244,1758327043061,-270.986835,0.00029335,7]
[386510245,1758327043070,-270.986835,0.00029335,7]
[386510248,1758327043080,-270.986835,0.00029335,7]
[386510250,1758327043090,-270.986835,0.00029335,7]
[386510252,1758327043099,-270.986835,0.00029335,7]
[386510254,1758327043108,-270.986835,0.00029335,7]
[386510255,1758327043118,-270.986835,0.00029335,7]
[386510258,1758327043128,-270.986835,0.00029335,7]
[386510260,1758327043139,-151.0,0.00029335,7]
[386510261,1758327043149,-151.0,0.00029335,7]
[386510264,1758327043158,-151.0,0.00029335,7]
[386510265,1758327043167,-167.333707,0.00029335,7]
[386510267,1758327043177,-151.0,0.00029335,7]
[386510269,1758327043188,-151.0,0.00029335,7]
[386510272,1758327043198,-151.0,0.00029335,7]
[386510274,1758327043207,-151.0,0.00029335,7]
[386510276,1758327043217,-151.0,0.00029335,7]
[386510277,1758327043227,-151.0,0.00029335,7]
[386510279,1758327043236,-151.0,0.00029335,7]
[386510281,1758327043246,-151.0,0.00029335,7]
[386510283,1758327043255,-151.0,0.00029335,7]
[386510285,1758327043265,-151.0,0.00029335,7]
[386510287,1758327043274,-151.0,0.00029335,7]
[386510290,1758327043284,-180.535018,0.00029335,7]
[386510293,1758327043293,-151.0,0.00029335,7]
[386510296,1758327043303,-151.0,0.00029335,7]
[386510298,1758327043313,-151.0,0.00029335,7]
[386510300,1758327043323,-151.0,0.00029335,7]
[386510302,1758327043332,-151.0,0.00029335,7]
[386510304,1758327043341,-259.780694,0.00029335,7]
[386510306,1758327043351,-450275.84484179,0.00029336,20]
[386510308,1758327043360,-32927.97112886,0.00029336,30]
[386510310,1758327043370,-326.16866943,0.00029336,7]
[386510312,1758327043380,-967.57110795,0.00029336,7]
[386510314,1758327043389,-236026.74174999,0.00029336,30]
[386510316,1758327043400,-10000.0,0.00029336,2]
[386510318,1758327043409,-5253.93315252,0.00029336,30]
[386510320,1758327043419,-6239.05990321,0.00029336,30]
[386510322,1758327043428,-41485.29449198,0.00029336,30]
[386510324,1758327043438,-19309.56374652,0.00029336,30]
[386510326,1758327043447,-18171.07048024,0.00029336,30]
[386510328,1758327043456,-239882.62262547,0.00029336,30]
[386510335,1758327043514,-1292.0,0.00029335,120]
[386510337,1758327043523,-567.49141479,0.00029336,2]
[386510355,1758327043687,-848.13460282,0.000293,30]
[386510357,1758327043696,-5788.62471913,0.00029336,2]
[386510359,1758327043705,-151.0,0.00029336,7]
[386510361,1758327043715,-151.0,0.00029336,7]
[386510362,1758327043723,-151.0,0.00029336,7]
[386510364,1758327043733,-151.0,0.00029336,7]
[386510366,1758327043742,-151.0,0.00029336,7]
[386510368,1758327043752,-151.0,0.00029336,7]
[386510370,1758327043761,-151.0,0.00029336,7]
[386510372,1758327043771,-151.0,0.00029336,7]
[386510374,1758327043780,-151.0,0.00029336,7]
[386510376,1758327043790,-97874.94100675,0.00029336,30]
[386510401,1758327044028,-468.942,0.00024607,2]
[386510646,1758327046812,-88.82209553,0.00024607,2]
[386510648,1758327046821,-1995.912689,0.000286,2]
[386510650,1758327046831,-1000.0,0.000291,2]
[386510652,1758327046841,-7701.01729925,0.00029335,2]
[386511692,1758327143196,233.37926869,0.000199,2]
[386511741,1758327344913,211.97766952,0.000199,2]
[386511766,1758327467492,-5017.30042078,0.00021072,2]
[386511767,1758327467567,-10000.01,0.00021072,2]
[386511768,1758327467738,-10000.01,0.00021072,2]
[386511773,1758327473714,-10000.01,0.00021072,2]
[386511775,1758327476716,-10000.01,0.00021072,2]
[386511780,1758327544514,211.97766951,0.000199,2]
[386511830,1758327740694,217.51648791,0.000199,2]
[386511838,1758327801444,1335.82,0.0002933,60]
[386511839,1758327827591,1000.0,0.0002933,60]
[386511841,1758327828643,1000.0,0.0002933,60]
[386511865,1758327865368,151.0,0.00024,120]
[386511866,1758327866802,151.0,0.000267,120]
[386511872,1758327908424,965.27502661,0.0002933,120]
[386511933,1758328150119,-195.915342,0.00021,5]
[386511934,1758328150249,-490.084658,0.00021072,2]
[386511984,1758328232784,-480.18664145,0.00021072,2]
[386511989,1758328232840,-4712.38827977,0.00021072,2]
[386511990,1758328232850,-595.23678138,0.00021073,2]
[386511991,1758328232860,-500.0,0.000211,2]
[386511992,1758328232870,-480.0,0.00021163,2]
[386511994,1758328232880,-480.6377937,0.00021437,2]
[386511996,1758328232891,-169.5930315,0.00022093,2]
[386511998,1758328232901,-189.0,0.00022098,2]
[386511999,1758328232911,-300.0,0.00022098,2]
[386512000,1758328232921,-300.0,0.00022098,2]
[386512003,1758328232932,-300.0,0.00022098,2]
[386512005,1758328232941,-300.0,0.00022098,2]
[386512009,1758328233114,-4749.53474289,0.00022099,2]
[386512010,1758328236520,5365.0,0.000207,2]
[386512022,1758328238769,-220.73662269,0.00022098,2]
[386512023,1758328238778,-517.21862345,0.00022098,2]
[386512024,1758328238788,-184.72174288,0.00022098,2]
[386512025,1758328238798,-11670.9225868,0.00022099,2]
[386512026,1758328238807,-61286.1265129,0.000221,2]
[386512027,1758328238817,-338.90537799,0.00022569,2]
[386512028,1758328238831,-1257.6933966,0.00022669,2]
[386512029,1758328238840,-480.2785542,0.00022899,2]
[386512030,1758328238851,-480.0,0.00022899,2]
[386512032,1758328238860,-480.0,0.00022899,2]
[386512033,1758328238870,-480.0,0.00022899,2]
[386512034,1758328238881,-480.0,0.00022899,2]
[386512035,1758328238890,-480.0,0.00022899,2]
[386512036,1758328238899,-493.66388589,0.00022899,2]
[386512037,1758328238908,-480.0,0.00022899,2]
[386512038,1758328238918,-480.0,0.00022899,2]
[386512039,1758328238928,-848.13460282,0.00023,2]
[386512040,1758328238938,-233.43972884,0.00023,2]
[386512041,1758328238947,-217.99592756,0.00023,2]
[386512042,1758328238956,-160.0,0.00023,2]
[386512043,1758328238966,-15403.9609204,0.00023325,2]
[386512044,1758328238975,-201.25235971,0.0002344,2]
[386512045,1758328238984,-338.90537794,0.0002352,2]
[386512046,1758328238994,-484.08599887,0.00023613,2]
[386512047,1758328239003,-25879.17346239,0.00023632,2]
[386512048,1758328239012,-338.90537794,0.00024472,2]
[386512049,1758328239022,-5204.83007231,0.000248,2]
[386512050,1758328239032,-5204.83007231,0.0002489,2]
[386512051,1758328239042,-77184.9650498,0.000249,2]
[386512052,1758328239051,-1190.01,0.000249,7]
[386512053,1758328239061,-414.02689131,0.000249,2]
[386512054,1758328239071,-1071.40701559,0.00025,2]
[386512055,1758328239080,-10500.46608821,0.00025,2]
[386512056,1758328239090,-2494.13312827,0.00025,5]
[386512057,1758328239099,-40090.33893373,0.00025,3]
[386512058,1758328239109,-500.0,0.00025,2]
[386512059,1758328239118,-2915.77083767,0.00025,2]
[386512060,1758328239127,-233.43972884,0.00025,3]
[386512061,1758328239138,-312.60051514,0.00025017,2]
[386512062,1758328239147,-338.90537794,0.00025423,2]
[386512063,1758328239156,-167.774,0.0002597,11]
[386512064,1758328239166,-414.02689128,0.00025982,2]
[386512065,1758328239176,-977.0,0.0002607,2]
[386512066,1758328239185,-2158.0,0.0002607,2]
[386512067,1758328239195,-634.0,0.0002607,2]
[386512068,1758328239205,-410.0,0.0002607,2]
[386512069,1758328239214,-415.167,0.0002607,2]
[386512070,1758328239224,-168.0,0.00026349,2]
[386512071,1758328239233,-338.90537794,0.00026375,2]
[386512072,1758328239243,-500.0,0.00026384,2]
[386512073,1758328239252,-168.0,0.00026704,2]
[386512074,1758328239261,-168.0,0.00026795,2]
[386512075,1758328239271,-168.0,0.00026904,2]
[386512076,1758328239279,-168.0,0.00026924,2]
[386512077,1758328239288,-575.05668545,0.00026973,2]
[386512078,1758328239298,-10409.6601446,0.0002698,2]
[386512079,1758328239307,-77184.9650498,0.0002699,2]
[386512080,1758328239316,-5204.83007231,0.0002699,2]
[386512081,1758328239326,-39326.64455179,0.00027,2]
[386512082,1758328239336,-414.02689128,0.00027065,2]
[386512083,1758328239346,-827.64847313,0.00027297,2]
[386512084,1758328239355,-338.90537794,0.00027326,2]
[386512085,1758328239364,-197.68813311,0.0002739,2]
[386512086,1758328239373,-150.0,0.0002739,2]
[386512087,1758328239382,-154.27242897,0.00027397,2]
[386512088,1758328239392,-166.35424728,0.00027397,2]
[386512089,1758328239402,-1934.40765148,0.00027444,2]
[386512090,1758328239411,-168.0,0.00027467,2]
[386512091,1758328239421,-45338.09010475,0.000275,2]
[386512092,1758328239430,-500.0,0.00027569,2]
[386512093,1758328239440,-600.0,0.00027577,2]
[386512094,1758328239449,-500.0,0.00027673,2]
[386512095,1758328239458,-500.0,0.00027693,2]
[386512096,1758328239468,-500.0,0.00027697,2]
[386512097,1758328239477,-600.0,0.00027712,2]
[386512098,1758328239486,-168.0,0.00027744,2]
[386512099,1758328239495,-499.3,0.00027792,2]
[386512100,1758328239505,-500.0,0.000278,5]
[386512101,1758328239514,-238.55539,0.000278,120]
[386512102,1758328239523,-600.0,0.00027895,2]
[386512103,1758328239532,-500.0,0.00027898,2]
[386512104,1758328239543,-500.0,0.00027907,2]
[386512105,1758328239553,-293.85068442,0.00027917,2]
[386512106,1758328239563,-500.0,0.00027925,2]
[386512107,1758328239572,-462.18121661,0.00027959,2]
[386512108,1758328239581,-184.87248666,0.0002796,2]
[386512109,1758328239590,-500.0,0.00027973,2]
[386512110,1758328239600,-1299.999999,0.00028,2]
[386512111,1758328239609,-2141.76530093,0.00028,120]
[386512112,1758328239618,-159.14781448,0.00028,2]
[386512113,1758328239627,-1190.01,0.00028,7]
[386512114,1758328239636,-1055.04,0.00028,2]
[386512115,1758328239646,-1612.91022,0.00028,120]
[386512116,1758328239655,-600.0,0.00028015,2]
[386512117,1758328239664,-600.0,0.00028019,2]
[386512118,1758328239672,-200.0,0.00028022,120]
[386512119,1758328239682,-168.0,0.00028025,2]
[386512120,1758328239691,-462.18121661,0.00028059,2]
[386512121,1758328239701,-500.0,0.00028075,2]
[386512122,1758328239710,-200.0,0.00028088,120]
[386512123,1758328239719,-1055.04,0.0002814,2]
[386512124,1758328239728,-600.0,0.00028144,2]
[386512125,1758328239737,-414.02689128,0.00028147,2]
[386512126,1758328239747,-600.0,0.000282,2]
[386512127,1758328239755,-600.0,0.00028222,2]
[386512128,1758328239764,-168.0,0.00028244,2]
[386512129,1758328239773,-827.64847312,0.00028263,2]
[386512130,1758328239782,-338.90537794,0.00028278,2]
[386512131,1758328239791,-1055.04,0.0002828,2]
[386512132,1758328239800,-600.0,0.00028289,2]
[386512133,1758328239810,-600.0,0.00028296,2]
[386512134,1758328239819,-161.84881539,0.00028329,30]
[386512135,1758328239832,-600.0,0.00028329,2]
[386512136,1758328239841,-500.0,0.00028371,2]
[386512137,1758328239851,-5204.83007231,0.0002841,2]
[386512138,1758328239860,-600.0,0.00028416,2]
[386512139,1758328239871,-1055.04,0.0002842,2]
[386512140,1758328239881,-995.27524671,0.00028434,2]
[386512141,1758328239890,-500.0,0.00028458,2]
[386512142,1758328239900,-1308.49730851,0.00028469,2]
[386512143,1758328239910,-500.0,0.00028478,2]
[386512144,1758328239920,-500.0,0.00028489,2]
[386512145,1758328239929,-898.93599219,0.00028516,2]
[386512146,1758328239939,-500.0,0.00028528,2]
[386512147,1758328239948,-1055.04,0.0002856,2]
[386512148,1758328239957,-500.0,0.00028576,7]
[386512149,1758328239968,-500.0,0.00028589,2]
[386512150,1758328239978,-162.0300095,0.0002863,30]
[386512151,1758328239987,-309.2013631,0.0002863,30]
[386512152,1758328239996,-585.3964936,0.0002863,30]
[386512153,1758328240005,-152.532536,0.0002863,30]
[386512154,1758328240014,-311.3117818,0.0002863,30]
[386512155,1758328240023,-296.3096638,0.0002863,30]
[386512156,1758328240032,-162.0300095,0.0002863,30]
[386512157,1758328240041,-585.3964936,0.0002863,30]
[386512158,1758328240050,-296.3096638,0.0002863,30]
[386512159,1758328240059,-162.0300095,0.0002863,30]
[386512160,1758328240068,-585.3964936,0.0002863,30]
[386512161,1758328240077,-162.0300095,0.0002863,30]
[386512162,1758328240087,-296.3096638,0.0002863,30]
[386512163,1758328240097,-584.1315184,0.0002863,30]
[386512164,1758328240106,-162.0300095,0.0002863,30]
[386512165,1758328240115,-162.0300095,0.0002863,30]
[386512166,1758328240125,-162.0300095,0.0002863,30]
[386512167,1758328240136,-500.0,0.00028643,2]
[386512168,1758328240146,-5000.0,0.00028767,20]
[386512169,1758328240155,-5000.0,0.00028767,18]
[386512170,1758328240166,-5000.0,0.00028767,22]
[386512171,1758328240178,-5000.0,0.00028767,22]
[386512173,1758328240188,-5000.0,0.00028767,16]
[386512175,1758328240199,-168.0,0.00028791,2]
[386512176,1758328240209,-200.0,0.00028794,120]
[386512177,1758328240219,-600.0,0.00028801,2]
[386512178,1758328240228,-500.0,0.00028802,2]
[386512179,1758328240237,-500.0,0.00028835,2]
[386512180,1758328240246,-600.0,0.00028885,2]
[386512181,1758328240256,-500.0,0.00028911,2]
[386512182,1758328240265,-500.0,0.00028945,2]
[386512183,1758328240275,-500.0,0.00028954,2]
[386512184,1758328240284,-200.0,0.00028961,120]
[386512186,1758328240302,-878.07251311,0.00029,2]
[386512188,1758328240314,-3035.55346182,0.00029,60]
[386512191,1758328240323,-209.0,0.00029,2]
[386512193,1758328240333,-600.0,0.00029041,2]
[386512195,1758328240343,-5204.83007231,0.00029049,2]
[386512197,1758328240352,-77184.9650498,0.0002906,2]
[386512199,1758328240362,-5204.83007231,0.0002906,2]
[386512201,1758328240371,-500.0,0.00029061,2]
[386512203,1758328240381,-977.0,0.0002907,2]
[386512205,1758328240391,-2158.0,0.0002907,2]
[386512207,1758328240400,-634.0,0.0002907,2]
[386512209,1758328240409,-410.0,0.0002907,2]
[386512211,1758328240418,-410.0,0.0002907,2]
[386512213,1758328240428,-500.0,0.00029071,2]
[386512215,1758328240437,-500.0,0.00029071,2]
[386512217,1758328240448,-500.0,0.00029076,2]
[386512219,1758328240457,-500.0,0.00029076,2]
[386512221,1758328240467,-500.0,0.00029093,2]
[386512223,1758328240476,-500.0,0.00029116,2]
[386512225,1758328240485,-200.0,0.00029142,120]
[386512227,1758328240494,-500.0,0.00029145,2]
[386512229,1758328240504,-600.0,0.00029209,2]
[386512231,1758328240514,-166.40936905,0.00029229,2]
[386512233,1758328240523,-827.64847312,0.00029229,2]
[386512235,1758328240533,-6111.81689471,0.00029229,2]
[386512237,1758328240543,-338.90537794,0.00029229,2]
[386512239,1758328240552,-414.02689128,0.00029229,2]
[386512241,1758328240562,-402.33211342,0.00029235,2]
[386512243,1758328240571,-1609.3284537,0.00029235,2]
[386512245,1758328240582,-3620.98902082,0.00029235,2]
[386512247,1758328240592,-6430.87650097,0.00029235,2]
[386512249,1758328240602,-786.89528233,0.00029235,2]
[386512251,1758328240611,-3144.43354821,0.00029235,2]
[386512253,1758328240621,-500.0,0.00029243,2]
[386512255,1758328240630,-166.40936905,0.00029248,2]
[386512257,1758328240640,-166.40936905,0.00029266,2]
[386512259,1758328240649,-15614.4902169,0.0002927,2]
[386512261,1758328240659,-150.0,0.00029273,5]
[386512263,1758328240668,-500.0,0.00029273,5]
[386512265,1758328240678,-500.0,0.00029273,5]
[386512267,1758328240687,-154369.9301,0.0002928,2]
[386512269,1758328240697,-166.40936905,0.00029285,2]
[386512271,1758328240707,-2000.0,0.000293,2]
[386512273,1758328240716,-2000.0,0.000293,2]
[386512275,1758328240726,-175.95492185,0.000293,20]
[386512277,1758328240736,-151.0,0.000293,120]
[386512279,1758328240746,-250.0,0.000293,10]
[386512281,1758328240755,-204.831726,0.000293,2]
[386512283,1758328240765,-166.40936905,0.00029303,2]
[386512285,1758328240775,-5204.83007231,0.00029319,2]
[386512287,1758328240785,-166.40936905,0.00029322,2]
[386512289,1758328240798,-155.0,0.00029326,2]
[386512291,1758328240807,-151.0,0.00029327,7]
[386512293,1758328240819,-151.0,0.00029327,7]
[386512296,1758328240833,-151.0,0.00029327,7]
[386512298,1758328240842,-151.0,0.00029327,7]
[386512300,1758328240852,-151.0,0.00029327,7]
[386512302,1758328240861,-151.0,0.00029327,7]
[386512304,1758328240871,-3376.88535113,0.00029329,2]
[386512306,1758328240881,-310766.45015196,0.00029329,30]
[386512308,1758328240892,-30879.94870813,0.00029329,30]
[386512310,1758328240902,-75253.47196677,0.00029329,30]
[386512312,1758328240912,-3494.79028645,0.00029329,2]
[386512314,1758328240922,-25200.0,0.00029329,30]
[386512316,1758328240931,-15000.0,0.00029329,10]
[386512318,1758328240941,-2000.0,0.00029329,30]
[386512320,1758328240951,-2000.0,0.00029329,30]
[386512322,1758328240962,-1077.199999,0.00029329,30]
[386512324,1758328240971,-32081.07582698,0.00029329,2]
[386512326,1758328240982,-288458.54988924,0.00029329,20]
[386512336,1758328241060,-151.0,0.00029329,7]
[386512338,1758328241070,-151.0,0.00029329,7]
[386512340,1758328241079,-152.461785,0.00029329,7]
[386512342,1758328241089,-200.0,0.00029329,120]
[386512344,1758328241098,-151.783823,0.00029329,7]
[386512346,1758328241108,-200.0,0.00029329,120]
[386512348,1758328241118,-151.94344,0.00029329,7]
[386512350,1758328241128,-166.932687,0.00029329,7]
[386512352,1758328241138,-151.0,0.00029329,7]
[386512354,1758328241148,-151.0,0.00029329,7]
[386512356,1758328241157,-151.0,0.00029329,7]
[386512358,1758328241167,-151.0,0.00029329,7]
[386512360,1758328241176,-151.0,0.00029329,7]
[386512362,1758328241186,-151.0,0.00029329,7]
[386512364,1758328241195,-151.0,0.00029329,7]
[386512366,1758328241205,-151.0,0.00029329,7]
[386512368,1758328241215,-151.0,0.00029329,7]
[386512370,1758328241224,-151.0,0.00029329,7]
[386512372,1758328241234,-213.557371,0.00029329,7]
[386512374,1758328241245,-151.0,0.00029329,7]
[386512376,1758328241255,-153.306525,0.00029329,7]
[386512378,1758328241264,-151.000003,0.00029329,7]
[386512380,1758328241273,-151.0,0.00029329,7]
[386512382,1758328241282,-151.0,0.00029329,7]
[386512384,1758328241291,-140.6604591,0.00029329,7]
[386512386,1758328241304,-10.3395409,0.00029329,7]
[386512388,1758328241313,-151.0,0.00029329,7]
[386512390,1758328241323,-151.0,0.00029329,7]
[386512392,1758328241332,-151.0,0.00029329,7]
[386512394,1758328241342,-151.0,0.00029329,7]
[386512396,1758328241351,-151.0,0.00029329,7]
[386512398,1758328241361,-151.0,0.00029329,7]
[386512400,1758328241370,-151.0,0.00029329,7]
[386512402,1758328241380,-151.0,0.00029329,7]
[386512404,1758328241390,-151.0,0.00029329,7]
[386512406,1758328241400,-151.0,0.00029329,7]
[386512408,1758328241410,-151.0,0.00029329,7]
[386512410,1758328241419,-151.0,0.00029329,7]
[386512412,1758328241428,-151.0,0.00029329,7]
[386512414,1758328241437,-151.0,0.00029329,7]
[386512416,1758328241446,-151.0,0.00029329,7]
[386512418,1758328241455,-151.0,0.00029329,7]
[386512420,1758328241464,-170.57174902,0.00029329,7]
[386512422,1758328241474,-151.0,0.00029329,7]
[386512424,1758328241483,-270.986835,0.00029329,7]
[386512426,1758328241492,-270.986835,0.00029329,7]
[386512428,1758328241502,-270.986835,0.00029329,7]
[386512430,1758328241511,-270.986835,0.00029329,7]
[386512432,1758328241520,-270.986835,0.00029329,7]
[386512434,1758328241529,-270.986835,0.00029329,7]
[386512436,1758328241539,-270.986835,0.00029329,7]
[386512438,1758328241548,-270.986835,0.00029329,7]
[386512440,1758328241557,-270.986835,0.00029329,7]
[386512442,1758328241567,-270.986835,0.00029329,7]
[386512444,1758328241576,-270.986835,0.00029329,7]
[386512446,1758328241585,-270.986835,0.00029329,7]
[386512448,1758328241595,-151.0,0.00029329,7]
[386512450,1758328241604,-151.0,0.00029329,7]
[386512452,1758328241613,-151.0,0.00029329,7]
[386512454,1758328241623,-151.0,0.00029329,7]
[386512456,1758328241633,-151.0,0.00029329,7]
[386512458,1758328241643,-151.0,0.00029329,7]
[386512460,1758328241654,-151.0,0.00029329,7]
[386512462,1758328241663,-151.0,0.00029329,7]
[386512476,1758328241787,-151.0,0.00029329,7]
[386512477,1758328241799,-151.0,0.00029329,7]
[386512478,1758328241809,-259.780694,0.00029329,7]
[386512479,1758328241818,-151.0,0.00029329,7]
[386512480,1758328241832,-151.0,0.00029329,7]
[386512481,1758328241841,-151.0,0.00029329,7]
[386512482,1758328241851,-16470.67090454,0.00029329,20]
[386512483,1758328241863,-13064.25645945,0.00029329,20]
[386512484,1758328241900,-359.50100004,0.00029329,20]
[386512689,1758328243901,-162.0300095,0.0002863,30]
[386512691,1758328243911,-859.11098265,0.00029329,20]
[386512693,1758328243923,-544.11034433,0.00029329,20]
[386512937,1758328246974,-333.06851119,0.00022098,2]
[386512939,1758328246985,-270.57874632,0.00022098,2]
[386512941,1758328246995,-184.54833623,0.00022098,2]
[386512943,1758328247005,-18989.06363149,0.00029329,20]
[386512945,1758328247017,-3675.36504122,0.00029329,20]
[386512947,1758328247029,-2444.57529979,0.00029329,20]
[386512953,1758328247079,-2197.86060927,0.00029329,20]
[386512955,1758328247091,-4103.01936736,0.00029329,20]
[386513541,1758328320091,218.07632763,0.000199,2]
[386513544,1758328464805,156.0,0.00024,120]
[386513545,1758328466179,156.0,0.000269,120]
[386513546,1758328516974,209.13118747,0.000199,2]
[386513571,1758328713450,211.18827916,0.000199,2]
[386513584,1758328915350,207.15742815,0.000199,2]
[386513600,1758329117695,209.21875772,0.000199,2]
[386513618,1758329236101,-300.0,0.00021099,2]
[386513619,1758329236122,-132.0,0.000211,2]
[386513622,1758329244130,-207.53174721,0.000211,2]
[386513623,1758329244151,-1154.63749427,0.000211,2]
[386513692,1758329431964,-918.02637208,0.000211,2]
[386513699,1758329432017,-643.17025537,0.000211,2]
[386513701,1758329432029,-2921.15825779,0.000211,2]
[386513703,1758329432038,-500.0,0.00021997,2]
[386513705,1758329432048,-480.0,0.00022099,2]
[386513707,1758329432058,-480.0,0.00022099,2]
[386513709,1758329432067,-480.0,0.00022099,2]
[386513712,1758329432077,-480.0,0.00022099,2]
[386513715,1758329432086,-480.0,0.00022099,2]
[386513717,1758329432095,-501.38611411,0.00022099,2]
[386513720,1758329432104,-480.0,0.00022099,2]
[386513722,1758329432113,-335.73,0.00022099,2]
[386513725,1758329432123,-231.0664712,0.00022999,2]
[386513728,1758329432132,-480.0,0.00022999,2]
[386513732,1758329432142,-480.0,0.00023273,2]
[386513734,1758329432152,-480.0,0.00023547,2]
[386513736,1758329432161,-480.0,0.00023821,2]
[386513738,1758329432171,-480.0,0.00024095,2]
[386513740,1758329432180,-480.0,0.00024369,2]
[386513742,1758329432189,-480.0,0.00024643,2]
[386513744,1758329432199,-480.0,0.00024917,2]
[386513746,1758329432208,-480.0,0.00025191,2]
[386513748,1758329432217,-482.45,0.00025465,2]
[386513750,1758329432227,-205.06000463,0.00025725,2]
[386513752,1758329432236,-205.06000463,0.00025725,2]
[386513754,1758329432245,-500.0,0.0002595,2]
[386513756,1758329432254,-500.0,0.0002595,2]
[386513758,1758329432264,-500.0,0.0002595,2]
[386513760,1758329432272,-233.43972884,0.00026241,2]
[386513762,1758329432282,-217.99592756,0.00026241,2]
[386513763,1758329432292,-160.0,0.00026241,2]
[386513766,1758329432301,-500.0,0.00026384,2]
[386513768,1758329432313,-328.0,0.00026396,3]
[386513769,1758329432322,-328.0,0.00026396,3]
[386513772,1758329432332,-328.0,0.00026396,3]
[386513773,1758329432342,-328.0,0.00026396,3]
[386513775,1758329432351,-328.0,0.00026396,3]
[386513777,1758329432360,-328.0,0.00026396,3]
[386513779,1758329432370,-328.0,0.00026396,3]
[386513781,1758329432380,-328.0,0.00026396,3]
[386513783,1758329432390,-328.0,0.00026396,3]
[386513785,1758329432400,-166.0,0.00026396,3]
[386513787,1758329432409,-166.0,0.00026396,3]
[386513789,1758329432418,-174.0,0.00026396,3]
[386513791,1758329432427,-328.0,0.00026396,3]
[386513793,1758329432436,-328.0,0.00026396,3]
[386513795,1758329432447,-328.0,0.00026396,3]
[386513797,1758329432456,-328.0,0.00026396,3]
[386513799,1758329432465,-230.36223425,0.00026396,3]
[386513801,1758329432475,-162.0,0.00026396,3]